[Event "Titled Tuesday Blitz July 4 Late 2023"]
[White "Gorovets, Andrey"]
[Black "Rottenwohrer Suarez, Juan"]
[WhiteFideId "13504037"]
[BlackFideId "32068182"]
[WhiteElo "2742"]
[BlackElo "2536"]
[Result "1-0"]
[Round "8"]
[TimeControl "180+2"]
[Date "2023.07.04"]
[WhiteClock "0:01:41"]
[BlackClock "0:00:18"]
[Board "44"]

1. Nf3 {[%clk 0:02:58]}  Nf6 {[%clk 0:02:58]} 2. c4 {[%clk 0:02:58]}  g6 {[%clk 0:02:58]} 3. g3 {[%clk 0:02:58]}  Bg7 {[%clk 0:02:58]} 4. Bg2 {[%clk 0:02:58]}  b6 {[%clk 0:02:59]} 5. O-O {[%clk 0:02:53]}  Bb7 {[%clk 0:02:58]} 6. Nc3 {[%clk 0:02:53]}  O-O {[%clk 0:02:59]} 7. Re1 {[%clk 0:02:53]}  Ne4 {[%clk 0:02:58]} 8. Nxe4 {[%clk 0:02:52]}  Bxe4 {[%clk 0:02:59]} 9. d3 {[%clk 0:02:53]}  Bb7 {[%clk 0:02:59]} 10. e4 {[%clk 0:02:53]}  c5 {[%clk 0:02:59]} 11. d4 {[%clk 0:02:54]}  cxd4 {[%clk 0:02:58]} 12. Nxd4 {[%clk 0:02:54]}  Nc6 {[%clk 0:02:59]} 13. Nc2 {[%clk 0:02:49]}  a6 {[%clk 0:02:39]} 14. Rb1 {[%clk 0:02:33]}  d6 {[%clk 0:02:34]} 15. b3 {[%clk 0:02:15]}  b5 {[%clk 0:02:33]} 16. Ne3 {[%clk 0:02:14]}  bxc4 {[%clk 0:02:19]} 17. Nxc4 {[%clk 0:02:15]}  a5 {[%clk 0:02:19]} 18. Bb2 {[%clk 0:02:14]}  Bxb2 {[%clk 0:02:18]} 19. Rxb2 {[%clk 0:02:15]}  Ne5 {[%clk 0:02:13]} 20. Nxe5 {[%clk 0:02:12]}  dxe5 {[%clk 0:02:12]} 21. Qxd8 {[%clk 0:02:05]}  Rfxd8 {[%clk 0:02:12]} 22. f3 {[%clk 0:02:03]}  Ba6 {[%clk 0:02:07]} 23. Bf1 {[%clk 0:02:01]}  Bxf1 {[%clk 0:02:06]} 24. Kxf1 {[%clk 0:02:02]}  Rac8 {[%clk 0:02:06]} 25. Kf2 {[%clk 0:02:00]}  Rc3 {[%clk 0:02:01]} 26. Re3 {[%clk 0:01:58]}  Rc1 {[%clk 0:01:59]} 27. a3 {[%clk 0:01:53]}  Rdd1 {[%clk 0:01:07]} 28. b4 {[%clk 0:01:51]}  axb4 {[%clk 0:01:08]} 29. axb4 {[%clk 0:01:52]}  Rg1 {[%clk 0:01:01]} 30. Ree2 {[%clk 0:01:45]}  Rc6 {[%clk 0:00:18]} 31. Kxg1 {[%clk 0:01:41]} 1-0


[Site "https://www.chess.com"]

[Event "Titled Tuesday Blitz July 4 Late 2023"]
[White "Erenberg, Ariel"]
[Black "Belov, Alexei"]
[WhiteFideId "2811634"]
[BlackFideId "4128206"]
[WhiteElo "2710"]
[BlackElo "2533"]
[Result "1/2-1/2"]
[Round "8"]
[TimeControl "180+2"]
[Date "2023.07.04"]
[WhiteClock "0:00:49"]
[BlackClock "0:00:21"]
[Board "45"]

1. b3 {[%clk 0:03:00]}  d5 {[%clk 0:02:59]} 2. Bb2 {[%clk 0:03:01]}  e6 {[%clk 0:02:59]} 3. g3 {[%clk 0:03:01]}  Nf6 {[%clk 0:02:59]} 4. Bg2 {[%clk 0:03:02]}  Be7 {[%clk 0:03:00]} 5. Nf3 {[%clk 0:03:02]}  O-O {[%clk 0:03:00]} 6. O-O {[%clk 0:03:02]}  c5 {[%clk 0:03:00]} 7. d3 {[%clk 0:03:02]}  Nc6 {[%clk 0:03:00]} 8. Nbd2 {[%clk 0:03:03]}  b6 {[%clk 0:02:59]} 9. e4 {[%clk 0:03:03]}  Bb7 {[%clk 0:02:58]} 10. Qe2 {[%clk 0:03:00]}  Qc7 {[%clk 0:02:57]} 11. e5 {[%clk 0:02:57]}  Nd7 {[%clk 0:02:56]} 12. h4 {[%clk 0:02:58]}  d4 {[%clk 0:02:48]} 13. Rfe1 {[%clk 0:02:54]}  Rae8 {[%clk 0:02:38]} 14. c3 {[%clk 0:02:47]}  dxc3 {[%clk 0:02:15]} 15. Bxc3 {[%clk 0:02:48]}  f6 {[%clk 0:02:15]} 16. exf6 {[%clk 0:02:44]}  Bxf6 {[%clk 0:02:15]} 17. Bxf6 {[%clk 0:02:35]}  Nxf6 {[%clk 0:02:15]} 18. Rac1 {[%clk 0:02:20]}  e5 {[%clk 0:02:03]} 19. Nc4 {[%clk 0:02:13]}  Nd4 {[%clk 0:02:02]} 20. Nxd4 {[%clk 0:02:12]}  exd4 {[%clk 0:02:02]} 21. Qd2 {[%clk 0:02:10]}  Bxg2 {[%clk 0:02:01]} 22. Kxg2 {[%clk 0:02:10]}  b5 {[%clk 0:01:55]} 23. Na5 {[%clk 0:02:06]}  Nd5 {[%clk 0:01:46]} 24. b4 {[%clk 0:02:00]}  Nc3 {[%clk 0:01:41]} 25. Rxe8 {[%clk 0:01:51]}  Rxe8 {[%clk 0:01:40]} 26. Re1 {[%clk 0:01:51]}  Rf8 {[%clk 0:01:36]} 27. Qg5 {[%clk 0:01:44]}  Qf7 {[%clk 0:01:16]} 28. f4 {[%clk 0:01:36]}  h6 {[%clk 0:01:14]} 29. Qxc5 {[%clk 0:01:34]}  Qxa2+ {[%clk 0:01:05]} 30. Kh3 {[%clk 0:01:31]}  Qf2 {[%clk 0:00:59]} 31. Qe5 {[%clk 0:01:27]}  Qf3 {[%clk 0:00:35]} 32. Qxd4 {[%clk 0:01:24]}  Ne2 {[%clk 0:00:34]} 33. Rxe2 {[%clk 0:01:12]}  Qxe2 {[%clk 0:00:34]} 34. Nc6 {[%clk 0:01:06]}  h5 {[%clk 0:00:31]} 35. Qd5+ {[%clk 0:01:00]}  Kh8 {[%clk 0:00:24]} 36. Ne5 {[%clk 0:00:50]}  Qf1+ {[%clk 0:00:22]} 37. Kh2 {[%clk 0:00:49]}  Qf2+ {[%clk 0:00:22]} 38. Kh3 {[%clk 0:00:49]}  Qf1+ {[%clk 0:00:22]} 39. Kh2 {[%clk 0:00:49]}  Qf2+ {[%clk 0:00:22]} 40. Kh3 {[%clk 0:00:49]}  Qf1+ {[%clk 0:00:21]} 1/2-1/2


[Site "https://www.chess.com"]

[Event "Titled Tuesday Blitz July 4 Late 2023"]
[White "Horcajuelo Rocamora, Martin"]
[Black "Fantastic_Power"]
[WhiteFideId "24573027"]
[WhiteElo "2504"]
[BlackElo "2653"]
[Result "0-1"]
[Round "8"]
[TimeControl "180+2"]
[Date "2023.07.04"]
[WhiteClock "0:00:40"]
[BlackClock "0:00:03"]
[Board "50"]

1. e4 {[%clk 0:03:00]}  c5 {[%clk 0:02:56]} 2. Nf3 {[%clk 0:02:54]}  e6 {[%clk 0:02:56]} 3. d4 {[%clk 0:02:54]}  cxd4 {[%clk 0:02:57]} 4. Nxd4 {[%clk 0:02:55]}  Nf6 {[%clk 0:02:58]} 5. Nc3 {[%clk 0:02:55]}  Nc6 {[%clk 0:02:58]} 6. Nxc6 {[%clk 0:02:46]}  bxc6 {[%clk 0:02:59]} 7. e5 {[%clk 0:02:47]}  Nd5 {[%clk 0:03:00]} 8. Ne4 {[%clk 0:02:48]}  Qc7 {[%clk 0:03:00]} 9. f4 {[%clk 0:02:48]}  Rb8 {[%clk 0:03:00]} 10. c4 {[%clk 0:02:48]}  Bb4+ {[%clk 0:03:00]} 11. Ke2 {[%clk 0:02:47]}  O-O {[%clk 0:03:00]} 12. cxd5 {[%clk 0:02:42]}  cxd5 {[%clk 0:03:01]} 13. Nd6 {[%clk 0:02:41]}  f6 {[%clk 0:03:00]} 14. Nxc8 {[%clk 0:02:36]}  fxe5 {[%clk 0:02:58]} 15. Be3 {[%clk 0:02:27]}  exf4 {[%clk 0:02:40]} 16. Rc1 {[%clk 0:02:26]}  Qe5 {[%clk 0:02:39]} 17. Qd4 {[%clk 0:02:24]}  Qh5+ {[%clk 0:02:33]} 18. Kd3 {[%clk 0:02:14]}  Qg6+ {[%clk 0:02:09]} 19. Ke2 {[%clk 0:02:08]}  Qg4+ {[%clk 0:01:56]} 20. Kd3 {[%clk 0:02:04]}  Qg6+ {[%clk 0:01:56]} 21. Ke2 {[%clk 0:02:02]}  fxe3 {[%clk 0:01:57]} 22. a3 {[%clk 0:01:24]}  Rf2+ {[%clk 0:00:12]} 23. Kxe3 {[%clk 0:01:22]}  Rd2 {[%clk 0:00:13]} 24. Qxb4 {[%clk 0:01:06]}  Qg5+ {[%clk 0:00:06]} 25. Qf4 {[%clk 0:01:05]}  d4+ {[%clk 0:00:05]} 26. Ke4 {[%clk 0:00:41]}  d5+ {[%clk 0:00:04]} 27. Kf3 {[%clk 0:00:42]}  Rf2+ {[%clk 0:00:04]} 28. Kxf2 {[%clk 0:00:43]}  Qxf4+ {[%clk 0:00:05]} 29. Ke2 {[%clk 0:00:43]}  Qxc1 {[%clk 0:00:05]} 30. Nd6 {[%clk 0:00:40]}  Rxb2+ {[%clk 0:00:04]} 31. Kf3 {[%clk 0:00:41]}  Qd1+ {[%clk 0:00:02]} 32. Kg3 {[%clk 0:00:41]}  Qe1+ {[%clk 0:00:02]} 33. Kh3 {[%clk 0:00:41]}  Qe3+ {[%clk 0:00:02]} 34. g3 {[%clk 0:00:42]}  Qe5 {[%clk 0:00:02]} 35. Nb5 {[%clk 0:00:42]}  Qf5+ {[%clk 0:00:02]} 36. g4 {[%clk 0:00:40]}  Qf3+ {[%clk 0:00:02]} 37. Kh4 {[%clk 0:00:40]}  Qxh1 {[%clk 0:00:03]} 38. Bh3 {[%clk 0:00:38]}  Qxh2 {[%clk 0:00:03]} 39. Kg5 {[%clk 0:00:39]}  h6+ {[%clk 0:00:03]} 40. Kg6 {[%clk 0:00:39]}  Qxh3 {[%clk 0:00:03]} 41. Nd6 {[%clk 0:00:40]}  Qxg4# {[%clk 0:00:03]} 0-1


[Site "https://www.chess.com"]

[Event "Titled Tuesday Blitz July 4 Late 2023"]
[White "Ganiev, Roman"]
[Black "Molenda, Marcin"]
[WhiteFideId "4131452"]
[BlackFideId "1173065"]
[WhiteElo "2623"]
[BlackElo "2498"]
[Result "0-1"]
[Round "8"]
[TimeControl "180+2"]
[Date "2023.07.04"]
[WhiteClock "0:00:11"]
[BlackClock "0:01:08"]
[Board "52"]

1. e4 {[%clk 0:03:00]}  c6 {[%clk 0:02:52]} 2. d4 {[%clk 0:03:00]}  d5 {[%clk 0:02:49]} 3. Nc3 {[%clk 0:03:01]}  dxe4 {[%clk 0:02:49]} 4. Nxe4 {[%clk 0:03:02]}  Bf5 {[%clk 0:02:50]} 5. Ng3 {[%clk 0:03:01]}  Bg6 {[%clk 0:02:48]} 6. Bc4 {[%clk 0:03:02]}  e6 {[%clk 0:02:46]} 7. N1e2 {[%clk 0:03:03]}  h6 {[%clk 0:02:44]} 8. Nf4 {[%clk 0:03:03]}  Bh7 {[%clk 0:02:44]} 9. O-O {[%clk 0:03:03]}  Nf6 {[%clk 0:02:45]} 10. c3 {[%clk 0:03:02]}  Be7 {[%clk 0:02:45]} 11. Ngh5 {[%clk 0:03:03]}  O-O {[%clk 0:02:39]} 12. Re1 {[%clk 0:03:01]}  Nbd7 {[%clk 0:02:33]} 13. Nxf6+ {[%clk 0:02:43]}  Nxf6 {[%clk 0:02:32]} 14. Bd2 {[%clk 0:02:19]}  Nd5 {[%clk 0:02:25]} 15. Qf3 {[%clk 0:02:15]}  Nxf4 {[%clk 0:02:25]} 16. Bxf4 {[%clk 0:02:15]}  Bd6 {[%clk 0:02:24]} 17. Bg3 {[%clk 0:02:13]}  Qc7 {[%clk 0:02:20]} 18. Rad1 {[%clk 0:02:11]}  Bxg3 {[%clk 0:02:20]} 19. hxg3 {[%clk 0:02:11]}  Rad8 {[%clk 0:02:15]} 20. Re5 {[%clk 0:02:07]}  Bg6 {[%clk 0:02:08]} 21. Rde1 {[%clk 0:02:07]}  Rfe8 {[%clk 0:01:46]} 22. Qg4 {[%clk 0:01:57]}  Kh7 {[%clk 0:01:42]} 23. Qh4 {[%clk 0:01:46]}  Qe7 {[%clk 0:01:40]} 24. Qxe7 {[%clk 0:01:43]}  Rxe7 {[%clk 0:01:40]} 25. b4 {[%clk 0:01:44]}  Rc7 {[%clk 0:01:31]} 26. g4 {[%clk 0:01:43]}  b6 {[%clk 0:01:26]} 27. f4 {[%clk 0:01:43]}  Bc2 {[%clk 0:01:26]} 28. R1e2 {[%clk 0:01:36]}  Bd1 {[%clk 0:01:24]} 29. R2e3 {[%clk 0:01:14]}  Bxg4 {[%clk 0:01:24]} 30. Bd3+ {[%clk 0:01:07]}  g6 {[%clk 0:01:23]} 31. Re1 {[%clk 0:00:58]}  c5 {[%clk 0:01:22]} 32. bxc5 {[%clk 0:00:58]}  bxc5 {[%clk 0:01:23]} 33. Bf1 {[%clk 0:00:28]}  cxd4 {[%clk 0:01:21]} 34. cxd4 {[%clk 0:00:29]}  Rxd4 {[%clk 0:01:21]} 35. g3 {[%clk 0:00:29]}  Rd2 {[%clk 0:01:19]} 36. Ra5 {[%clk 0:00:25]}  Bf3 {[%clk 0:01:13]} 37. Rb1 {[%clk 0:00:21]}  Bd5 {[%clk 0:01:08]} 38. a3 {[%clk 0:00:11]}  Rc3 {[%clk 0:01:08]} 0-1


[Site "https://www.chess.com"]

[Event "Titled Tuesday Blitz July 4 Late 2023"]
[White "Toniutti, Ezio"]
[Black "Karttunen, Mika"]
[WhiteFideId "113034"]
[BlackFideId "502081"]
[WhiteElo "2495"]
[BlackElo "2610"]
[Result "1-0"]
[Round "8"]
[TimeControl "180+2"]
[Date "2023.07.04"]
[WhiteClock "0:00:55"]
[BlackClock "0:00:00"]
[Board "53"]

1. d4 {[%clk 0:03:00]}  Nf6 {[%clk 0:02:59]} 2. c4 {[%clk 0:03:00]}  e6 {[%clk 0:02:59]} 3. g3 {[%clk 0:02:59]}  d5 {[%clk 0:02:58]} 4. Bg2 {[%clk 0:03:00]}  dxc4 {[%clk 0:02:57]} 5. Nf3 {[%clk 0:03:00]}  Bb4+ {[%clk 0:02:57]} 6. Bd2 {[%clk 0:03:00]}  a5 {[%clk 0:02:56]} 7. Qc2 {[%clk 0:02:59]}  O-O {[%clk 0:02:55]} 8. O-O {[%clk 0:02:59]}  b5 {[%clk 0:02:43]} 9. a4 {[%clk 0:02:51]}  bxa4 {[%clk 0:02:38]} 10. Bxb4 {[%clk 0:02:41]}  axb4 {[%clk 0:02:36]} 11. Qxc4 {[%clk 0:02:40]}  Ba6 {[%clk 0:02:24]} 12. Qxb4 {[%clk 0:02:40]}  Bxe2 {[%clk 0:02:21]} 13. Re1 {[%clk 0:02:38]}  Bxf3 {[%clk 0:01:49]} 14. Bxf3 {[%clk 0:02:37]}  Nd5 {[%clk 0:01:49]} 15. Qc4 {[%clk 0:02:36]}  Nd7 {[%clk 0:01:45]} 16. Rc1 {[%clk 0:02:30]}  N7b6 {[%clk 0:01:43]} 17. Qc5 {[%clk 0:02:28]}  Qf6 {[%clk 0:01:40]} 18. Kg2 {[%clk 0:02:24]}  Ra7 {[%clk 0:01:24]} 19. Nc3 {[%clk 0:02:23]}  Rd8 {[%clk 0:00:56]} 20. Nb5 {[%clk 0:02:14]}  Ra5 {[%clk 0:00:49]} 21. b4 {[%clk 0:02:06]}  Raa8 {[%clk 0:00:36]} 22. Nxc7 {[%clk 0:02:00]}  Rac8 {[%clk 0:00:26]} 23. Nxd5 {[%clk 0:01:51]}  exd5 {[%clk 0:00:25]} 24. Qb5 {[%clk 0:01:32]}  Rxc1 {[%clk 0:00:17]} 25. Rxc1 {[%clk 0:01:31]}  Qxd4 {[%clk 0:00:17]} 26. Rd1 {[%clk 0:01:31]}  Qf6 {[%clk 0:00:17]} 27. Rc1 {[%clk 0:01:24]}  Nc4 {[%clk 0:00:08]} 28. Bxd5 {[%clk 0:01:19]}  Nd6 {[%clk 0:00:05]} 29. Qa5 {[%clk 0:01:17]}  Rf8 {[%clk 0:00:04]} 30. Bf3 {[%clk 0:01:16]}  Qe7 {[%clk 0:00:02]} 31. Qxa4 {[%clk 0:01:12]}  Nf5 {[%clk 0:00:02]} 32. b5 {[%clk 0:01:02]}  g6 {[%clk 0:00:03]} 33. b6 {[%clk 0:01:01]}  Qd6 {[%clk 0:00:02]} 34. b7 {[%clk 0:00:58]}  Nd4 {[%clk 0:00:03]} 35. Rd1 {[%clk 0:00:56]}  Qb6 {[%clk 0:00:00]} 36. Qxd4 {[%clk 0:00:55]} 1-0


[Site "https://www.chess.com"]

[Event "Titled Tuesday Blitz July 4 Late 2023"]
[White "Ladan, Nicholas"]
[Black "Janaszak, Dawid"]
[WhiteFideId "30918855"]
[BlackFideId "1119206"]
[WhiteElo "2468"]
[BlackElo "2592"]
[Result "0-1"]
[Round "8"]
[TimeControl "180+2"]
[Date "2023.07.04"]
[WhiteClock "0:00:00"]
[BlackClock "0:00:49"]
[Board "55"]

1. d4 {[%clk 0:02:59]}  d5 {[%clk 0:02:59]} 2. Nf3 {[%clk 0:02:59]}  c5 {[%clk 0:02:59]} 3. c4 {[%clk 0:02:55]}  e6 {[%clk 0:02:57]} 4. cxd5 {[%clk 0:02:55]}  exd5 {[%clk 0:02:57]} 5. Nc3 {[%clk 0:02:55]}  Nc6 {[%clk 0:02:57]} 6. e4 {[%clk 0:02:52]}  dxe4 {[%clk 0:02:54]} 7. Nxe4 {[%clk 0:02:42]}  cxd4 {[%clk 0:02:54]} 8. Bc4 {[%clk 0:02:37]}  Nf6 {[%clk 0:02:48]} 9. Neg5 {[%clk 0:02:17]}  Bb4+ {[%clk 0:02:47]} 10. Bd2 {[%clk 0:02:12]}  O-O {[%clk 0:02:46]} 11. O-O {[%clk 0:02:08]}  Bc5 {[%clk 0:02:34]} 12. Nxf7 {[%clk 0:02:00]}  Rxf7 {[%clk 0:02:32]} 13. Ng5 {[%clk 0:02:01]}  Ne5 {[%clk 0:02:25]} 14. Nxf7 {[%clk 0:01:41]}  Nxf7 {[%clk 0:02:25]} 15. Qb3 {[%clk 0:01:33]}  Qf8 {[%clk 0:02:10]} 16. Rfe1 {[%clk 0:01:32]}  b6 {[%clk 0:01:47]} 17. Bg5 {[%clk 0:01:17]}  Bf5 {[%clk 0:01:38]} 18. Re5 {[%clk 0:01:07]}  Bg6 {[%clk 0:01:37]} 19. Rae1 {[%clk 0:01:01]}  Kh8 {[%clk 0:01:32]} 20. Bxf6 {[%clk 0:00:52]}  gxf6 {[%clk 0:01:32]} 21. Re6 {[%clk 0:00:43]}  Ne5 {[%clk 0:01:33]} 22. f4 {[%clk 0:00:19]}  Nxc4 {[%clk 0:01:25]} 23. Qxc4 {[%clk 0:00:18]}  Bf7 {[%clk 0:01:26]} 24. f5 {[%clk 0:00:19]}  Bxe6 {[%clk 0:01:24]} 25. fxe6 {[%clk 0:00:20]}  d3+ {[%clk 0:01:18]} 26. Kh1 {[%clk 0:00:20]}  d2 {[%clk 0:01:18]} 27. Rf1 {[%clk 0:00:17]}  Rd8 {[%clk 0:01:15]} 28. Qc2 {[%clk 0:00:12]}  Qd6 {[%clk 0:01:08]} 29. Qf5 {[%clk 0:00:11]}  Qe5 {[%clk 0:00:54]} 30. Qg4 {[%clk 0:00:00]}  Qe1 {[%clk 0:00:49]} 0-1


[Site "https://www.chess.com"]

[Event "Titled Tuesday Blitz July 4 Late 2023"]
[White "Sebag, Marie"]
[Black "Balla, Tamas-Kristof"]
[WhiteFideId "617822"]
[BlackFideId "1208497"]
[WhiteElo "2587"]
[BlackElo "2459"]
[Result "0-1"]
[Round "8"]
[TimeControl "180+2"]
[Date "2023.07.04"]
[WhiteClock "0:00:12"]
[BlackClock "0:01:32"]
[Board "57"]

1. d4 {[%clk 0:03:00]}  d5 {[%clk 0:03:00]} 2. c4 {[%clk 0:02:58]}  e6 {[%clk 0:02:59]} 3. Nc3 {[%clk 0:02:58]}  c5 {[%clk 0:02:59]} 4. cxd5 {[%clk 0:02:57]}  exd5 {[%clk 0:03:00]} 5. Nf3 {[%clk 0:02:57]}  Nc6 {[%clk 0:02:59]} 6. g3 {[%clk 0:02:57]}  Nf6 {[%clk 0:02:59]} 7. Bg2 {[%clk 0:02:57]}  cxd4 {[%clk 0:03:00]} 8. Nxd4 {[%clk 0:02:56]}  Bc5 {[%clk 0:03:01]} 9. Be3 {[%clk 0:02:55]}  Qb6 {[%clk 0:03:00]} 10. Nc2 {[%clk 0:02:39]}  Bxe3 {[%clk 0:02:47]} 11. Nxe3 {[%clk 0:02:35]}  d4 {[%clk 0:02:34]} 12. Ned5 {[%clk 0:02:13]}  Qa5 {[%clk 0:02:26]} 13. O-O {[%clk 0:01:46]}  dxc3 {[%clk 0:02:17]} 14. Nxf6+ {[%clk 0:01:46]}  gxf6 {[%clk 0:02:17]} 15. Qd6 {[%clk 0:01:44]}  Bd7 {[%clk 0:02:09]} 16. Qxf6 {[%clk 0:01:22]}  Qe5 {[%clk 0:02:05]} 17. Qh4 {[%clk 0:01:18]}  cxb2 {[%clk 0:02:03]} 18. Rad1 {[%clk 0:01:13]}  Rd8 {[%clk 0:01:58]} 19. Qc4 {[%clk 0:00:38]}  O-O {[%clk 0:01:50]} 20. Rd5 {[%clk 0:00:34]}  Qg7 {[%clk 0:01:50]} 21. Qf4 {[%clk 0:00:27]}  f6 {[%clk 0:01:43]} 22. Qd2 {[%clk 0:00:22]}  f5 {[%clk 0:01:36]} 23. Qc2 {[%clk 0:00:17]}  Be6 {[%clk 0:01:33]} 24. Rxd8 {[%clk 0:00:15]}  Rxd8 {[%clk 0:01:34]} 25. e3 {[%clk 0:00:12]}  Bxa2 {[%clk 0:01:32]} 0-1


[Site "https://www.chess.com"]

[Event "Titled Tuesday Blitz July 4 Late 2023"]
[White "Ovchinnikov, Vsevolod"]
[Black "szachmistrz2500"]
[WhiteFideId "24176842"]
[WhiteElo "2582"]
[BlackElo "2453"]
[Result "1-0"]
[Round "8"]
[TimeControl "180+2"]
[Date "2023.07.04"]
[WhiteClock "0:00:08"]
[BlackClock "0:00:04"]
[Board "58"]

1. d4 {[%clk 0:03:00]}  c5 {[%clk 0:02:59]} 2. d5 {[%clk 0:03:01]}  e5 {[%clk 0:02:59]} 3. e4 {[%clk 0:03:00]}  d6 {[%clk 0:02:57]} 4. Nc3 {[%clk 0:02:59]}  g6 {[%clk 0:02:55]} 5. Bb5+ {[%clk 0:02:51]}  Nd7 {[%clk 0:02:51]} 6. a4 {[%clk 0:02:50]}  Bg7 {[%clk 0:02:50]} 7. h4 {[%clk 0:02:46]}  h6 {[%clk 0:02:49]} 8. h5 {[%clk 0:02:45]}  g5 {[%clk 0:02:49]} 9. g4 {[%clk 0:02:34]}  Ne7 {[%clk 0:02:37]} 10. f3 {[%clk 0:02:28]}  O-O {[%clk 0:02:36]} 11. Nge2 {[%clk 0:02:22]}  a6 {[%clk 0:02:35]} 12. Bd3 {[%clk 0:02:21]}  Qc7 {[%clk 0:02:33]} 13. b3 {[%clk 0:02:21]}  Rb8 {[%clk 0:02:19]} 14. Ng3 {[%clk 0:02:13]}  f6 {[%clk 0:02:18]} 15. Qe2 {[%clk 0:02:10]}  Re8 {[%clk 0:02:15]} 16. Kf2 {[%clk 0:01:57]}  Nb6 {[%clk 0:02:13]} 17. a5 {[%clk 0:01:56]}  Na8 {[%clk 0:02:13]} 18. Bd2 {[%clk 0:01:49]}  Bd7 {[%clk 0:02:13]} 19. Ra2 {[%clk 0:01:46]}  Qd8 {[%clk 0:02:11]} 20. Rha1 {[%clk 0:01:44]}  Nc7 {[%clk 0:02:11]} 21. Nf1 {[%clk 0:01:34]}  Rf8 {[%clk 0:02:08]} 22. Ne3 {[%clk 0:01:34]}  Rf7 {[%clk 0:02:03]} 23. Kg2 {[%clk 0:01:29]}  Bf8 {[%clk 0:02:03]} 24. Qf1 {[%clk 0:01:18]}  Qe8 {[%clk 0:02:00]} 25. Nc4 {[%clk 0:01:17]}  Nc8 {[%clk 0:01:59]} 26. Ne2 {[%clk 0:01:14]}  Nb5 {[%clk 0:01:54]} 27. c3 {[%clk 0:01:10]}  Be7 {[%clk 0:01:53]} 28. Ng3 {[%clk 0:01:10]}  Bf8 {[%clk 0:01:48]} 29. Be1 {[%clk 0:01:08]}  Qd8 {[%clk 0:01:44]} 30. Rc2 {[%clk 0:01:00]}  Qe8 {[%clk 0:01:43]} 31. Qe2 {[%clk 0:00:58]}  Qd8 {[%clk 0:01:43]} 32. Bf2 {[%clk 0:00:58]}  Qe8 {[%clk 0:01:43]} 33. Qd2 {[%clk 0:00:56]}  Nba7 {[%clk 0:01:40]} 34. Ne3 {[%clk 0:00:50]}  Ne7 {[%clk 0:01:35]} 35. Bf1 {[%clk 0:00:46]}  Nb5 {[%clk 0:01:34]} 36. Qc1 {[%clk 0:00:42]}  Qd8 {[%clk 0:01:28]} 37. Qb2 {[%clk 0:00:42]}  Bc8 {[%clk 0:01:18]} 38. Qa2 {[%clk 0:00:41]}  Bd7 {[%clk 0:01:18]} 39. Rac1 {[%clk 0:00:40]}  Bc8 {[%clk 0:01:18]} 40. Bd3 {[%clk 0:00:38]}  Bd7 {[%clk 0:01:17]} 41. Ne2 {[%clk 0:00:38]}  Nc8 {[%clk 0:01:15]} 42. b4 {[%clk 0:00:32]}  Kh8 {[%clk 0:01:00]} 43. Nc4 {[%clk 0:00:31]}  Qe8 {[%clk 0:00:42]} 44. Nb2 {[%clk 0:00:28]}  Nca7 {[%clk 0:00:38]} 45. Ra1 {[%clk 0:00:18]}  Kh7 {[%clk 0:00:38]} 46. Na4 {[%clk 0:00:18]}  Rc8 {[%clk 0:00:32]} 47. Nb6 {[%clk 0:00:18]}  Rc7 {[%clk 0:00:32]} 48. Nxd7 {[%clk 0:00:17]}  Qxd7 {[%clk 0:00:32]} 49. Rb1 {[%clk 0:00:16]}  Be7 {[%clk 0:00:28]} 50. c4 {[%clk 0:00:16]}  Nd4 {[%clk 0:00:26]} 51. Nxd4 {[%clk 0:00:10]}  cxd4 {[%clk 0:00:26]} 52. b5 {[%clk 0:00:08]}  Rc5 {[%clk 0:00:24]} 53. Be1 {[%clk 0:00:07]}  Bd8 {[%clk 0:00:22]} 54. Bb4 {[%clk 0:00:07]}  Rc8 {[%clk 0:00:21]} 55. bxa6 {[%clk 0:00:06]}  bxa6 {[%clk 0:00:21]} 56. c5 {[%clk 0:00:06]}  dxc5 {[%clk 0:00:20]} 57. Rxc5 {[%clk 0:00:07]}  Rxc5 {[%clk 0:00:19]} 58. Bxc5 {[%clk 0:00:08]}  Nb5 {[%clk 0:00:12]} 59. Bxb5 {[%clk 0:00:08]}  axb5 {[%clk 0:00:13]} 60. a6 {[%clk 0:00:09]}  Qc8 {[%clk 0:00:10]} 61. a7 {[%clk 0:00:09]}  Qa8 {[%clk 0:00:11]} 62. Rxb5 {[%clk 0:00:09]}  d3 {[%clk 0:00:04]} 63. Rb8 {[%clk 0:00:08]} 1-0


[Site "https://www.chess.com"]

[Event "Titled Tuesday Blitz July 4 Late 2023"]
[White "Bueno, Alfeu Junior Varela"]
[Black "Sousa, Andre Ventura"]
[WhiteFideId "2108879"]
[BlackFideId "1917617"]
[WhiteElo "2448"]
[BlackElo "2575"]
[Result "0-1"]
[Round "8"]
[TimeControl "180+2"]
[Date "2023.07.04"]
[WhiteClock "0:00:04"]
[BlackClock "0:00:28"]
[Board "59"]

1. e4 {[%clk 0:03:00]}  c6 {[%clk 0:02:59]} 2. d4 {[%clk 0:03:00]}  d5 {[%clk 0:02:59]} 3. f3 {[%clk 0:03:00]}  dxe4 {[%clk 0:02:56]} 4. fxe4 {[%clk 0:03:01]}  e5 {[%clk 0:02:56]} 5. Nf3 {[%clk 0:03:01]}  Bg4 {[%clk 0:02:53]} 6. Bc4 {[%clk 0:03:02]}  Nd7 {[%clk 0:02:51]} 7. c3 {[%clk 0:02:59]}  Ngf6 {[%clk 0:02:46]} 8. Qb3 {[%clk 0:02:55]}  Bh5 {[%clk 0:02:38]} 9. O-O {[%clk 0:02:19]}  Bd6 {[%clk 0:02:33]} 10. Qxb7 {[%clk 0:02:15]}  O-O {[%clk 0:02:23]} 11. Qxc6 {[%clk 0:02:14]}  Qe7 {[%clk 0:02:20]} 12. dxe5 {[%clk 0:02:00]}  Bc5+ {[%clk 0:02:11]} 13. Kh1 {[%clk 0:01:55]}  Ng4 {[%clk 0:02:10]} 14. Bg5 {[%clk 0:01:46]}  Qe8 {[%clk 0:01:50]} 15. e6 {[%clk 0:01:32]}  fxe6 {[%clk 0:01:35]} 16. Bxe6+ {[%clk 0:01:25]}  Kh8 {[%clk 0:01:32]} 17. Bxd7 {[%clk 0:01:24]}  Qe5 {[%clk 0:01:02]} 18. Qxa8 {[%clk 0:00:50]}  Nf2+ {[%clk 0:00:46]} 19. Rxf2 {[%clk 0:00:47]}  Bxf3 {[%clk 0:00:46]} 20. Qd5 {[%clk 0:00:26]}  Bxg2+ {[%clk 0:00:28]} 21. Rxg2 {[%clk 0:00:03]}  Rf1+ {[%clk 0:00:27]} 22. Rg1 {[%clk 0:00:04]}  Rxg1# {[%clk 0:00:28]} 0-1


[Site "https://www.chess.com"]